[Event "Early-Titled-Tuesday-Blitz-December-26-2023"]
[Site "Chess.com"]
[Date "2023.12.26"]
[Round "2"]
[White "Alexchess1984"]
[Black "Abduzhaparov"]
[Result "1-0"]
[WhiteElo "2706"]
[BlackElo "2433"]
[TimeControl "180+1"]
[EndTime "8:17:13 PST"]
[Termination "Alexchess1984 won by resignation"]

1. e4 {[%clk 0:03:00.9]} 1... d6 {[%clk 0:03:00.9]} 2. d4 {[%clk 0:03:00.6]}
2... Nf6 {[%clk 0:03:01.8]} 3. Nc3 {[%clk 0:03:00.8]} 3... e5 {[%clk 0:03:02.7]}
4. Nf3 {[%clk 0:03:00.4]} 4... exd4 {[%clk 0:03:02.8]} 5. Qxd4 {[%clk
0:03:01.3]} 5... Be7 {[%clk 0:03:01]} 6. Bg5 {[%clk 0:02:57.5]} 6... O-O {[%clk
0:02:58.8]} 7. O-O-O {[%clk 0:02:57.2]} 7... Nc6 {[%clk 0:02:58.2]} 8. Qd2
{[%clk 0:02:53.2]} 8... h6 {[%clk 0:02:51.8]} 9. Bf4 {[%clk 0:02:51.6]} 9... Be6
{[%clk 0:02:50.4]} 10. Bd3 {[%clk 0:02:47.5]} 10... Nb4 {[%clk 0:02:47.7]} 11.
a3 {[%clk 0:02:47]} 11... Nxd3+ {[%clk 0:02:46.3]} 12. Qxd3 {[%clk 0:02:46.2]}
12... a6 {[%clk 0:02:33.4]} 13. h3 {[%clk 0:02:44.8]} 13... b5 {[%clk
0:02:30.9]} 14. g4 {[%clk 0:02:42.9]} 14... Rb8 {[%clk 0:02:29.1]} 15. Rdg1
{[%clk 0:02:40.8]} 15... b4 {[%clk 0:02:26.2]} 16. axb4 {[%clk 0:02:41.7]} 16...
Rxb4 {[%clk 0:02:26.6]} 17. g5 {[%clk 0:02:36.9]} 17... Nh5 {[%clk 0:02:26.5]}
18. Bd2 {[%clk 0:02:36.2]} 18... Bc4 {[%clk 0:02:05.5]} 19. Qe3 {[%clk
0:02:31.9]} 19... hxg5 {[%clk 0:02:01.1]} 20. Nxg5 {[%clk 0:02:28.9]} 20... c6
{[%clk 0:01:49]} 21. Qf3 {[%clk 0:02:20]} 21... Nf6 {[%clk 0:01:39.3]} 22. Nb1
{[%clk 0:01:53.9]} 22... Qb8 {[%clk 0:01:33]} 23. Bxb4 {[%clk 0:01:49.9]} 23...
Qxb4 {[%clk 0:01:33.9]} 24. Qc3 {[%clk 0:01:47.2]} 24... Rb8 {[%clk 0:01:07.6]}
25. Qxb4 {[%clk 0:01:42.9]} 25... Rxb4 {[%clk 0:01:08.5]} 26. Nd2 {[%clk
0:01:34.6]} 26... Be6 {[%clk 0:01:03.1]} 27. c3 {[%clk 0:01:29.4]} 27... Ra4
{[%clk 0:00:58.5]} 28. Nxe6 {[%clk 0:01:25.6]} 28... fxe6 {[%clk 0:00:59.4]} 29.
Kc2 {[%clk 0:01:22.6]} 29... d5 {[%clk 0:00:51.6]} 30. Ra1 {[%clk 0:01:20.6]}
30... Rxa1 {[%clk 0:00:40.4]} 31. Rxa1 {[%clk 0:01:21.5]} 31... dxe4 {[%clk
0:00:34.2]} 32. Rxa6 {[%clk 0:01:18.5]} 32... Bc5 {[%clk 0:00:34.8]} 33. Rxc6
{[%clk 0:01:17.8]} 33... Bxf2 {[%clk 0:00:34.8]} 34. Rxe6 {[%clk 0:01:18.1]}
34... Kf7 {[%clk 0:00:31.3]} 35. Rxf6+ {[%clk 0:01:13.2]} 35... gxf6 {[%clk
0:00:30]} 36. Nxe4 {[%clk 0:01:13.6]} 36... Be3 {[%clk 0:00:25.3]} 37. Kd3
{[%clk 0:01:13.3]} 37... Bc1 {[%clk 0:00:24.6]} 38. b4 {[%clk 0:01:13.8]} 38...
f5 {[%clk 0:00:24.4]} 39. Ng3 {[%clk 0:01:09.7]} 39... Ke6 {[%clk 0:00:21.5]}
40. Ne2 {[%clk 0:01:05.4]} 40... Bg5 {[%clk 0:00:19.1]} 41. Nd4+ {[%clk
0:01:03.2]} 41... Kf6 {[%clk 0:00:15.5]} 42. c4 {[%clk 0:01:01]} 42... Bh4
{[%clk 0:00:11.9]} 43. Nf3 {[%clk 0:01:01]} 43... Bg3 {[%clk 0:00:12]} 44. c5
{[%clk 0:01:00.4]} 44... Ke6 {[%clk 0:00:10.2]} 45. Kc4 {[%clk 0:00:59.6]} 45...
f4 {[%clk 0:00:10]} 46. b5 {[%clk 0:00:59.6]} 46... Kf5 {[%clk 0:00:08]} 47. c6
{[%clk 0:00:59.5]} 47... Ke4 {[%clk 0:00:07.4]} 48. c7 {[%clk 0:00:59.3]} 48...
Kxf3 {[%clk 0:00:06.9]} 49. c8=Q {[%clk 0:01:00.2]} 49... Kg2 {[%clk 0:00:06.6]}
50. b6 {[%clk 0:00:59.6]} 50... f3 {[%clk 0:00:07.2]} 51. Qc6 {[%clk 0:01:00.3]}
51... Kh2 {[%clk 0:00:03.5]} 52. Qxf3 {[%clk 0:00:59.4]} 52... Bb8 {[%clk
0:00:02.2]} 53. b7 {[%clk 0:00:59]} 53... Ba7 {[%clk 0:00:02.1]} 54. Kd5 {[%clk
0:00:57.5]} 54... Bb8 {[%clk 0:00:03]} 55. h4 {[%clk 0:00:57.5]} 55... Ba7
{[%clk 0:00:03.3]} 56. h5 {[%clk 0:00:58.3]} 56... Bb8 {[%clk 0:00:03.7]} 57. h6
{[%clk 0:00:59]} 57... Kg1 {[%clk 0:00:03.3]} 58. h7 {[%clk 0:00:58.9]} 58...
Bf4 {[%clk 0:00:02.8]} 59. Qxf4 {[%clk 0:00:57.2]} 1-0

[Event "Early-Titled-Tuesday-Blitz-December-26-2023"]
[Site "Chess.com"]
[Date "2023.12.26"]
[Round "2"]
[White "rachidhuilda"]
[Black "Iskusnyh"]
[Result "0-1"]
[WhiteElo "2356"]
[BlackElo "2619"]
[TimeControl "180+1"]
[EndTime "8:17:13 PST"]
[Termination "Iskusnyh won on time"]

1. d4 {[%clk 0:02:57.1]} 1... d5 {[%clk 0:02:59.6]} 2. Nf3 {[%clk 0:02:56.3]}
2... Nf6 {[%clk 0:02:59.2]} 3. c4 {[%clk 0:02:56.8]} 3... c6 {[%clk 0:02:59.1]}
4. Nc3 {[%clk 0:02:53.9]} 4... e6 {[%clk 0:02:56.2]} 5. Bg5 {[%clk 0:02:53.4]}
5... Be7 {[%clk 0:02:53.8]} 6. e3 {[%clk 0:02:52.9]} 6... h6 {[%clk 0:02:53.3]}
7. Bh4 {[%clk 0:02:52]} 7... Nbd7 {[%clk 0:02:52.1]} 8. cxd5 {[%clk 0:02:51.8]}
8... Nxd5 {[%clk 0:02:47.8]} 9. Bg3 {[%clk 0:02:48.8]} 9... Qa5 {[%clk
0:02:37.1]} 10. Qb3 {[%clk 0:02:40.5]} 10... c5 {[%clk 0:02:26.5]} 11. Bb5
{[%clk 0:02:31.7]} 11... cxd4 {[%clk 0:02:18.2]} 12. exd4 {[%clk 0:02:23.4]}
12... Bb4 {[%clk 0:01:59.1]} 13. Bxd7+ {[%clk 0:01:49.4]} 13... Bxd7 {[%clk
0:01:57.8]} 14. O-O {[%clk 0:01:49.9]} 14... Bxc3 {[%clk 0:01:28.5]} 15. bxc3
{[%clk 0:01:50]} 15... b5 {[%clk 0:01:06.5]} 16. Ne5 {[%clk 0:00:55.9]} 16...
Qxc3 {[%clk 0:00:44.5]} 17. Qd1 {[%clk 0:00:45.2]} 17... Rd8 {[%clk 0:00:40.6]}
18. Rc1 {[%clk 0:00:41.5]} 18... Qa3 {[%clk 0:00:37.5]} 19. Nxd7 {[%clk
0:00:35.8]} 19... Rxd7 {[%clk 0:00:32.2]} 20. Rc8+ {[%clk 0:00:33.6]} 20... Rd8
{[%clk 0:00:32.4]} 21. Rxd8+ {[%clk 0:00:34.2]} 21... Kxd8 {[%clk 0:00:33.3]}
22. Qg4 {[%clk 0:00:26.3]} 22... g5 {[%clk 0:00:23.7]} 23. Be5 {[%clk
0:00:24.8]} 23... Rg8 {[%clk 0:00:19.3]} 24. h4 {[%clk 0:00:15.9]} 24... Ke7
{[%clk 0:00:18.2]} 25. g3 {[%clk 0:00:12.1]} 25... Qxa2 {[%clk 0:00:14.8]} 26.
Rc1 {[%clk 0:00:10.4]} 26... Qd2 {[%clk 0:00:13.6]} 27. Rc6 {[%clk 0:00:05.4]}
27... Qe1+ {[%clk 0:00:11.1]} 28. Kg2 {[%clk 0:00:04.5]} 28... f5 {[%clk
0:00:09.2]} 29. Qh5 {[%clk 0:00:03.4]} 29... Qe4+ {[%clk 0:00:08.8]} 30. Kg1
{[%clk 0:00:02.5]} 30... Ne3 {[%clk 0:00:06.5]} 31. fxe3 {[%clk 0:00:01]} 31...
Qxc6 {[%clk 0:00:05.4]} 0-1

[Event "Early-Titled-Tuesday-Blitz-December-26-2023"]
[Site "Chess.com"]
[Date "2023.12.26"]
[Round "2"]
[White "tetrix83"]
[Black "Aygehovit1992"]
[Result "1-0"]
[WhiteElo "2570"]
[BlackElo "2759"]
[TimeControl "180+1"]
[EndTime "8:17:17 PST"]
[Termination "tetrix83 won by resignation"]

1. e4 {[%clk 0:03:00.9]} 1... c5 {[%clk 0:02:59.9]} 2. Nf3 {[%clk 0:02:59.2]}
2... d6 {[%clk 0:02:59.7]} 3. Bc4 {[%clk 0:02:56.1]} 3... Nf6 {[%clk 0:02:58.8]}
4. Qe2 {[%clk 0:02:54.6]} 4... Nc6 {[%clk 0:02:55.6]} 5. c3 {[%clk 0:02:53.2]}
5... Bg4 {[%clk 0:02:52.6]} 6. h3 {[%clk 0:02:51.7]} 6... Bxf3 {[%clk
0:02:52.5]} 7. Qxf3 {[%clk 0:02:50.9]} 7... a6 {[%clk 0:02:51.7]} 8. O-O {[%clk
0:02:48]} 8... Ne5 {[%clk 0:02:50]} 9. Qe2 {[%clk 0:02:47.6]} 9... Nxc4 {[%clk
0:02:50.1]} 10. Qxc4 {[%clk 0:02:47.4]} 10... b5 {[%clk 0:02:50.4]} 11. Qe2
{[%clk 0:02:46.6]} 11... e6 {[%clk 0:02:42.3]} 12. d4 {[%clk 0:02:16.2]} 12...
d5 {[%clk 0:02:41.2]} 13. e5 {[%clk 0:02:12.5]} 13... Ne4 {[%clk 0:02:26]} 14.
Bf4 {[%clk 0:02:11.3]} 14... cxd4 {[%clk 0:02:09.4]} 15. cxd4 {[%clk 0:02:10.5]}
15... Qb6 {[%clk 0:02:06.3]} 16. Qe3 {[%clk 0:02:09.8]} 16... Rc8 {[%clk
0:01:51.2]} 17. Kh2 {[%clk 0:01:57.1]} 17... g5 {[%clk 0:01:41.5]} 18. Bg3
{[%clk 0:01:47.5]} 18... h5 {[%clk 0:01:41.4]} 19. h4 {[%clk 0:01:43.7]} 19...
Bh6 {[%clk 0:01:24.2]} 20. hxg5 {[%clk 0:01:38.6]} 20... Bxg5 {[%clk 0:01:22.4]}
21. f4 {[%clk 0:01:26.9]} 21... h4 {[%clk 0:01:06.9]} 22. Be1 {[%clk 0:01:21.6]}
22... Be7 {[%clk 0:00:59.2]} 23. Nc3 {[%clk 0:01:19]} 23... h3 {[%clk
0:00:50.9]} 24. g3 {[%clk 0:01:07.3]} 24... Rc4 {[%clk 0:00:49.7]} 25. Rd1
{[%clk 0:01:05.9]} 25... Nxc3 {[%clk 0:00:34.7]} 26. bxc3 {[%clk 0:00:59.2]}
26... b4 {[%clk 0:00:35.2]} 27. f5 {[%clk 0:00:58.5]} 27... bxc3 {[%clk
0:00:34.1]} 28. fxe6 {[%clk 0:00:57.6]} 28... fxe6 {[%clk 0:00:33.8]} 29. Bxc3
{[%clk 0:00:52.4]} 29... Qc6 {[%clk 0:00:27.3]} 30. Rf3 {[%clk 0:00:38.9]} 30...
Qa4 {[%clk 0:00:18.8]} 31. Rd2 {[%clk 0:00:33.9]} 31... Qa3 {[%clk 0:00:18.9]}
32. Rb2 {[%clk 0:00:28]} 32... Rc8 {[%clk 0:00:03.5]} 33. Qd3 {[%clk 0:00:25.2]}
33... Qa4 {[%clk 0:00:02.9]} 34. Rff2 {[%clk 0:00:20.5]} 34... Rg8 {[%clk
0:00:03.1]} 35. Qh7 {[%clk 0:00:18.2]} 35... Rf8 {[%clk 0:00:03.5]} 36. Rxf8+
{[%clk 0:00:14.5]} 36... Bxf8 {[%clk 0:00:04.4]} 37. Rb7 {[%clk 0:00:14.4]}
37... Qc6 {[%clk 0:00:03.1]} 38. Qf7+ {[%clk 0:00:12.9]} 38... Kd8 {[%clk
0:00:03.3]} 39. Qxf8+ {[%clk 0:00:11.9]} 1-0

[Event "Early-Titled-Tuesday-Blitz-December-26-2023"]
[Site "Chess.com"]
[Date "2023.12.26"]
[Round "2"]
[White "Zq1"]
[Black "PeshkaCh"]
[Result "0-1"]
[WhiteElo "2406"]
[BlackElo "2834"]
[TimeControl "180+1"]
[EndTime "8:17:17 PST"]
[Termination "PeshkaCh won by checkmate"]

1. d4 {[%clk 0:03:00.9]} 1... Nf6 {[%clk 0:02:59.1]} 2. c4 {[%clk 0:03:00.3]}
2... e6 {[%clk 0:02:59.3]} 3. Nf3 {[%clk 0:02:58.3]} 3... d5 {[%clk 0:02:59.7]}
4. Nc3 {[%clk 0:02:56.9]} 4... Be7 {[%clk 0:02:59.8]} 5. g3 {[%clk 0:02:52.6]}
5... O-O {[%clk 0:02:59.9]} 6. Bg2 {[%clk 0:02:52.3]} 6... c5 {[%clk 0:02:59.5]}
7. cxd5 {[%clk 0:02:48.8]} 7... Nxd5 {[%clk 0:02:59.1]} 8. O-O {[%clk
0:02:45.2]} 8... Nc6 {[%clk 0:02:58.9]} 9. Nxd5 {[%clk 0:02:44.9]} 9... exd5
{[%clk 0:02:59.8]} 10. Be3 {[%clk 0:02:35]} 10... c4 {[%clk 0:02:56.8]} 11. b3
{[%clk 0:02:34]} 11... Be6 {[%clk 0:02:38.9]} 12. Ne5 {[%clk 0:02:23]} 12...
Nxe5 {[%clk 0:02:30.7]} 13. dxe5 {[%clk 0:02:22.2]} 13... Qc7 {[%clk 0:02:29.5]}
14. Bd4 {[%clk 0:02:14.5]} 14... b5 {[%clk 0:02:27.9]} 15. f4 {[%clk 0:02:10.1]}
15... f5 {[%clk 0:02:22.4]} 16. exf6 {[%clk 0:02:07]} 16... Bxf6 {[%clk
0:02:22.6]} 17. Bxf6 {[%clk 0:02:06.2]} 17... Rxf6 {[%clk 0:02:23.5]} 18. Qd4
{[%clk 0:02:04.5]} 18... Rd8 {[%clk 0:02:17]} 19. Rad1 {[%clk 0:01:56.9]} 19...
Rff8 {[%clk 0:02:07.3]} 20. b4 {[%clk 0:01:47.3]} 20... a5 {[%clk 0:01:52.2]}
21. a3 {[%clk 0:01:41.6]} 21... axb4 {[%clk 0:01:50]} 22. axb4 {[%clk
0:01:41.4]} 22... Qd6 {[%clk 0:01:47.7]} 23. f5 {[%clk 0:01:32.6]} 23... Rxf5
{[%clk 0:01:13.8]} 24. Rxf5 {[%clk 0:01:29.9]} 24... Bxf5 {[%clk 0:01:14.7]} 25.
Bxd5+ {[%clk 0:01:12.4]} 25... Kh8 {[%clk 0:01:13]} 26. e4 {[%clk 0:01:08.2]}
26... Bg4 {[%clk 0:00:24.5]} 27. Ra1 {[%clk 0:00:52.3]} 27... Qxb4 {[%clk
0:00:16.9]} 28. Bxc4 {[%clk 0:00:30.7]} 28... Qe7 {[%clk 0:00:10.2]} 29. Bd5
{[%clk 0:00:25.8]} 29... Rc8 {[%clk 0:00:04.8]} 30. Ra7 {[%clk 0:00:17.3]} 30...
Qf8 {[%clk 0:00:05.1]} 31. Ra1 {[%clk 0:00:10.3]} 31... h6 {[%clk 0:00:04.2]}
32. Rf1 {[%clk 0:00:09.6]} 32... Qe7 {[%clk 0:00:04.4]} 33. Rf7 {[%clk
0:00:08.3]} 33... Qg5 {[%clk 0:00:05]} 34. Rf1 {[%clk 0:00:07.9]} 34... Rc1
{[%clk 0:00:04.2]} 35. h4 {[%clk 0:00:05.8]} 35... Rxf1+ {[%clk 0:00:04.3]} 36.
Kxf1 {[%clk 0:00:06.1]} 36... Qc1+ {[%clk 0:00:05]} 37. Kf2 {[%clk 0:00:06]}
37... Qc2+ {[%clk 0:00:05.2]} 38. Ke3 {[%clk 0:00:04.7]} 38... Qe2+ {[%clk
0:00:05.5]} 39. Kf4 {[%clk 0:00:04.7]} 39... Qf3+ {[%clk 0:00:06.4]} 40. Ke5
{[%clk 0:00:04]} 40... Qf6# {[%clk 0:00:07.2]} 0-1

[Event "Early-Titled-Tuesday-Blitz-December-26-2023"]
[Site "Chess.com"]
[Date "2023.12.26"]
[Round "2"]
[White "Jospem"]
[Black "ftorodent"]
[Result "1-0"]
[WhiteElo "3069"]
[BlackElo "2658"]
[TimeControl "180+1"]
[EndTime "8:17:18 PST"]
[Termination "Jospem won on time"]

1. e4 {[%clk 0:03:00.9]} 1... e6 {[%clk 0:02:59.8]} 2. d4 {[%clk 0:03:00.7]}
2... d5 {[%clk 0:02:59.9]} 3. Nd2 {[%clk 0:03:01.5]} 3... c5 {[%clk 0:02:58.8]}
4. exd5 {[%clk 0:03:00.5]} 4... exd5 {[%clk 0:02:58.9]} 5. Ngf3 {[%clk 0:03:00]}
5... Nc6 {[%clk 0:02:58.9]} 6. Bb5 {[%clk 0:03:00.3]} 6... Bd6 {[%clk
0:02:59.1]} 7. O-O {[%clk 0:02:58.6]} 7... Ne7 {[%clk 0:02:58.7]} 8. dxc5 {[%clk
0:02:59.1]} 8... Bxc5 {[%clk 0:02:59]} 9. Nb3 {[%clk 0:03:00]} 9... Bd6 {[%clk
0:02:59.4]} 10. h3 {[%clk 0:02:57.9]} 10... O-O {[%clk 0:02:59]} 11. Bd3 {[%clk
0:02:58.1]} 11... h6 {[%clk 0:02:56.8]} 12. c3 {[%clk 0:02:58.1]} 12... Bf5
{[%clk 0:02:56.5]} 13. Bxf5 {[%clk 0:02:52.8]} 13... Nxf5 {[%clk 0:02:56.4]} 14.
Qd3 {[%clk 0:02:53.6]} 14... Qd7 {[%clk 0:02:56.2]} 15. Bd2 {[%clk 0:02:54.1]}
15... Rad8 {[%clk 0:02:54.9]} 16. Rfe1 {[%clk 0:02:53.3]} 16... Rfe8 {[%clk
0:02:55]} 17. Rad1 {[%clk 0:02:52.4]} 17... Rxe1+ {[%clk 0:02:50.4]} 18. Rxe1
{[%clk 0:02:53.3]} 18... Nfe7 {[%clk 0:02:50.5]} 19. Be3 {[%clk 0:02:49.4]}
19... Ng6 {[%clk 0:02:47.1]} 20. Rd1 {[%clk 0:02:36.8]} 20... b6 {[%clk
0:02:33.4]} 21. Qb5 {[%clk 0:02:12.6]} 21... Nce5 {[%clk 0:02:12.6]} 22. Qe2
{[%clk 0:02:06.4]} 22... Qf5 {[%clk 0:01:48.3]} 23. Nbd4 {[%clk 0:02:03.7]}
23... Nxf3+ {[%clk 0:01:46.9]} 24. Qxf3 {[%clk 0:02:02]} 24... Qxf3 {[%clk
0:01:46.9]} 25. Nxf3 {[%clk 0:02:02.9]} 25... Bc5 {[%clk 0:01:46.7]} 26. Bc1
{[%clk 0:01:47.9]} 26... Be7 {[%clk 0:01:32.4]} 27. Be3 {[%clk 0:01:46.5]} 27...
Bc5 {[%clk 0:01:31.7]} 28. Bc1 {[%clk 0:01:47.2]} 28... Be7 {[%clk 0:01:31.4]}
29. Kf1 {[%clk 0:01:48]} 29... Kf8 {[%clk 0:01:29.9]} 30. Nd4 {[%clk 0:01:47]}
30... Bf6 {[%clk 0:01:26.4]} 31. Nb5 {[%clk 0:01:45.6]} 31... Rd7 {[%clk
0:01:22.6]} 32. Be3 {[%clk 0:01:41.4]} 32... Ke7 {[%clk 0:01:15.8]} 33. a4
{[%clk 0:01:37]} 33... Nf8 {[%clk 0:00:54.6]} 34. a5 {[%clk 0:01:18.6]} 34... a6
{[%clk 0:00:32.2]} 35. Bxb6 {[%clk 0:01:18.6]} 35... Ne6 {[%clk 0:00:14.4]} 36.
Na7 {[%clk 0:01:03.6]} 36... d4 {[%clk 0:00:13.4]} 37. Nc6+ {[%clk 0:01:03]}
37... Ke8 {[%clk 0:00:10.4]} 38. Nxd4 {[%clk 0:00:59.6]} 38... Rd5 {[%clk
0:00:07.5]} 39. b4 {[%clk 0:00:52.8]} 39... Kd7 {[%clk 0:00:02.9]} 40. g3 {[%clk
0:00:50.5]} 40... Bxd4 {[%clk 0:00:02.5]} 41. Bxd4 {[%clk 0:00:49.9]} 41... Kc6
{[%clk 0:00:02]} 42. Ke2 {[%clk 0:00:50.3]} 42... Kb5 {[%clk 0:00:02.2]} 43. Be3
{[%clk 0:00:36.8]} 43... Rxd1 {[%clk 0:00:01.9]} 44. Kxd1 {[%clk 0:00:37.7]}
44... Kc4 {[%clk 0:00:02.1]} 45. Kd2 {[%clk 0:00:38.6]} 45... Nc7 {[%clk
0:00:02.5]} 46. Bd4 {[%clk 0:00:38]} 46... g6 {[%clk 0:00:02.9]} 47. Ke3 {[%clk
0:00:36]} 47... Nd5+ {[%clk 0:00:02.6]} 48. Ke4 {[%clk 0:00:32.8]} 48... f6
{[%clk 0:00:01.1]} 49. g4 {[%clk 0:00:31.2]} 1-0

[Event "Early-Titled-Tuesday-Blitz-December-26-2023"]
[Site "Chess.com"]
[Date "2023.12.26"]
[Round "2"]
[White "Rakitic2010"]
[Black "pirulillo"]
[Result "0-1"]
[WhiteElo "2507"]
[BlackElo "2277"]
[TimeControl "180+1"]
[EndTime "8:17:18 PST"]
[Termination "pirulillo won on time"]

1. e4 {[%clk 0:03:00.9]} 1... c5 {[%clk 0:02:59]} 2. Nf3 {[%clk 0:03:00.4]} 2...
e6 {[%clk 0:02:59.5]} 3. d4 {[%clk 0:03:00.4]} 3... cxd4 {[%clk 0:03:00.4]} 4.
Nxd4 {[%clk 0:03:00.9]} 4... Nf6 {[%clk 0:03:00.6]} 5. Nc3 {[%clk 0:03:00.3]}
5... Nc6 {[%clk 0:03:01]} 6. Ndb5 {[%clk 0:03:00.4]} 6... d6 {[%clk 0:02:59.9]}
7. Bf4 {[%clk 0:02:59.8]} 7... e5 {[%clk 0:03:00.5]} 8. Bg5 {[%clk 0:02:59.9]}
8... a6 {[%clk 0:03:01]} 9. Na3 {[%clk 0:02:59.6]} 9... b5 {[%clk 0:03:01.6]}
10. Nd5 {[%clk 0:02:59.7]} 10... Be7 {[%clk 0:03:01.4]} 11. Bxf6 {[%clk
0:03:00.1]} 11... Bxf6 {[%clk 0:03:02.3]} 12. c4 {[%clk 0:02:58.9]} 12... b4
{[%clk 0:03:02.1]} 13. Nc2 {[%clk 0:02:59.2]} 13... O-O {[%clk 0:03:02.2]} 14.
g3 {[%clk 0:02:59.7]} 14... a5 {[%clk 0:03:01.4]} 15. Bg2 {[%clk 0:02:59.7]}
15... Be6 {[%clk 0:03:00.7]} 16. O-O {[%clk 0:02:59.6]} 16... Rb8 {[%clk
0:02:57.9]} 17. b3 {[%clk 0:02:59.4]} 17... Qd7 {[%clk 0:02:57.1]} 18. Qh5
{[%clk 0:02:46.3]} 18... Bd8 {[%clk 0:02:53.5]} 19. Qd1 {[%clk 0:02:36.9]} 19...
Bb6 {[%clk 0:02:45.6]} 20. Nxb6 {[%clk 0:02:28.2]} 20... Rxb6 {[%clk 0:02:46.5]}
21. c5 {[%clk 0:02:28.6]} 21... dxc5 {[%clk 0:02:44.8]} 22. Qxd7 {[%clk
0:02:25]} 22... Bxd7 {[%clk 0:02:45.7]} 23. Rad1 {[%clk 0:02:25.1]} 23... Nd4
{[%clk 0:02:41.5]} 24. Ne3 {[%clk 0:02:22.6]} 24... Be6 {[%clk 0:02:36.9]} 25.
f4 {[%clk 0:02:17.2]} 25... a4 {[%clk 0:02:29.1]} 26. f5 {[%clk 0:02:13.8]}
26... Bc8 {[%clk 0:02:27.7]} 27. Nc4 {[%clk 0:02:10.1]} 27... Ra6 {[%clk
0:02:21.3]} 28. Nxe5 {[%clk 0:02:06.3]} 28... axb3 {[%clk 0:02:18.1]} 29. axb3
{[%clk 0:02:06.8]} 29... Nxb3 {[%clk 0:02:15.5]} 30. Rd5 {[%clk 0:01:51.6]}
30... Bb7 {[%clk 0:02:05.6]} 31. Rd7 {[%clk 0:01:50.1]} 31... Bc6 {[%clk
0:01:44]} 32. Rc7 {[%clk 0:01:38.7]} 32... Nd4 {[%clk 0:01:35.6]} 33. f6 {[%clk
0:01:35]} 33... b3 {[%clk 0:01:29.5]} 34. fxg7 {[%clk 0:01:31.6]} 34... Kxg7
{[%clk 0:01:30.4]} 35. Nxf7 {[%clk 0:00:49.9]} 35... b2 {[%clk 0:00:52.1]} 36.
e5 {[%clk 0:00:32.4]} 36... Ra1 {[%clk 0:00:37.6]} 37. Ng5+ {[%clk 0:00:09.4]}
37... Kg6 {[%clk 0:00:22.2]} 38. Rxc6+ {[%clk 0:00:06.1]} 38... Nxc6 {[%clk
0:00:20.3]} 39. Be4+ {[%clk 0:00:01.8]} 39... Kxg5 {[%clk 0:00:18.8]} 40. h4+
{[%clk 0:00:02.1]} 40... Kh6 {[%clk 0:00:13.3]} 0-1

[Event "Early-Titled-Tuesday-Blitz-December-26-2023"]
[Site "Chess.com"]
[Date "2023.12.26"]
[Round "2"]
[White "IAgrest"]
[Black "viviania"]
[Result "1/2-1/2"]
[WhiteElo "2461"]
[BlackElo "2820"]
[TimeControl "180+1"]
[EndTime "8:17:20 PST"]
[Termination "Game drawn by repetition"]

1. e4 {[%clk 0:03:00.9]} 1... Nf6 {[%clk 0:02:59.4]} 2. e5 {[%clk 0:03:00]} 2...
Nd5 {[%clk 0:02:59.7]} 3. d4 {[%clk 0:03:00.5]} 3... d6 {[%clk 0:02:59.9]} 4. c4
{[%clk 0:03:00.8]} 4... Nb6 {[%clk 0:03:00.1]} 5. exd6 {[%clk 0:03:01]} 5...
exd6 {[%clk 0:03:00.5]} 6. Nc3 {[%clk 0:02:59.4]} 6... Be7 {[%clk 0:03:00.7]} 7.
Nf3 {[%clk 0:02:57.9]} 7... Bg4 {[%clk 0:02:57]} 8. h3 {[%clk 0:02:58.3]} 8...
Bh5 {[%clk 0:02:56.6]} 9. b3 {[%clk 0:02:53.7]} 9... O-O {[%clk 0:02:47.4]} 10.
Be2 {[%clk 0:02:53.1]} 10... d5 {[%clk 0:02:42.7]} 11. c5 {[%clk 0:02:49]} 11...
Nc8 {[%clk 0:02:42.8]} 12. O-O {[%clk 0:02:47.2]} 12... c6 {[%clk 0:02:43]} 13.
Ne5 {[%clk 0:02:45.3]} 13... Bxe2 {[%clk 0:02:42]} 14. Nxe2 {[%clk 0:02:43.6]}
14... Nd7 {[%clk 0:02:41.3]} 15. f4 {[%clk 0:02:43.4]} 15... f5 {[%clk
0:02:18.7]} 16. Ng3 {[%clk 0:02:28.5]} 16... g6 {[%clk 0:02:18.6]} 17. Nh1
{[%clk 0:02:06.6]} 17... Bf6 {[%clk 0:01:51.9]} 18. Nf2 {[%clk 0:02:05.1]} 18...
Ne7 {[%clk 0:01:52]} 19. Nfd3 {[%clk 0:02:02.5]} 19... Bg7 {[%clk 0:01:49.3]}
20. g4 {[%clk 0:01:57]} 20... Nf6 {[%clk 0:01:38.9]} 21. Be3 {[%clk 0:01:29.8]}
21... Ne4 {[%clk 0:01:34.6]} 22. Bf2 {[%clk 0:01:23.1]} 22... Bf6 {[%clk
0:01:22.4]} 23. Qe1 {[%clk 0:01:19]} 23... fxg4 {[%clk 0:00:42.7]} 24. hxg4
{[%clk 0:01:14.1]} 24... Bxe5 {[%clk 0:00:42.5]} 25. dxe5 {[%clk 0:01:06.9]}
25... Qd7 {[%clk 0:00:42]} 26. Qe2 {[%clk 0:01:00.1]} 26... h5 {[%clk
0:00:37.9]} 27. Bh4 {[%clk 0:00:44.9]} 27... hxg4 {[%clk 0:00:19.1]} 28. Bxe7
{[%clk 0:00:42.2]} 28... Qxe7 {[%clk 0:00:19.1]} 29. Qxg4 {[%clk 0:00:42.4]}
29... Rf7 {[%clk 0:00:17.8]} 30. f5 {[%clk 0:00:20.9]} 30... Qg5 {[%clk
0:00:17.5]} 31. Qxg5 {[%clk 0:00:18]} 31... Nxg5 {[%clk 0:00:17.7]} 32. f6
{[%clk 0:00:13.6]} 32... Ne6 {[%clk 0:00:13.6]} 33. b4 {[%clk 0:00:12.1]} 33...
Rh7 {[%clk 0:00:13]} 34. Nf4 {[%clk 0:00:07.6]} 34... Kf7 {[%clk 0:00:12.1]} 35.
Kg2 {[%clk 0:00:07]} 35... Rah8 {[%clk 0:00:10.9]} 36. Nxe6 {[%clk 0:00:04]}
36... Rh2+ {[%clk 0:00:10.4]} 37. Kg3 {[%clk 0:00:03.4]} 37... Kxe6 {[%clk
0:00:10.5]} 38. f7 {[%clk 0:00:03]} 38... R2h3+ {[%clk 0:00:07.3]} 39. Kg2
{[%clk 0:00:03]} 39... Rh2+ {[%clk 0:00:07]} 40. Kg3 {[%clk 0:00:03.4]} 40...
R2h3+ {[%clk 0:00:07.3]} 41. Kg2 {[%clk 0:00:03.9]} 41... Rh2+ {[%clk
0:00:07.7]} 42. Kg3 {[%clk 0:00:04.5]} 1/2-1/2